[Event "Early-Titled-Tuesday-Blitz-September-12-2023"]
[Site "Chess.com"]
[Date "2023.09.12"]
[Round "3"]
[White "savitha1030"]
[Black "viktorskliarov"]
[Result "0-1"]
[WhiteElo "2475"]
[BlackElo "2657"]
[TimeControl "180+1"]
[EndTime "8:29:37 PDT"]
[Termination "viktorskliarov won by checkmate"]

1. Nf3 {[%clk 0:02:56.7]} 1... g6 {[%clk 0:02:59.4]} 2. g3 {[%clk 0:02:55.2]}
2... Bg7 {[%clk 0:02:59.9]} 3. Bg2 {[%clk 0:02:56.1]} 3... Nf6 {[%clk
0:03:00.2]} 4. O-O {[%clk 0:02:57]} 4... O-O {[%clk 0:03:00.7]} 5. c4 {[%clk
0:02:57.8]} 5... c6 {[%clk 0:03:01.3]} 6. Nc3 {[%clk 0:02:58.3]} 6... d5 {[%clk
0:03:01.6]} 7. cxd5 {[%clk 0:02:59.2]} 7... cxd5 {[%clk 0:03:02.2]} 8. d4 {[%clk
0:02:59.3]} 8... Nc6 {[%clk 0:03:02.5]} 9. a3 {[%clk 0:02:48.2]} 9... Ne4 {[%clk
0:03:01]} 10. Bf4 {[%clk 0:02:28.5]} 10... Nxc3 {[%clk 0:02:59.9]} 11. bxc3
{[%clk 0:02:29.4]} 11... Bf5 {[%clk 0:02:54.8]} 12. Nh4 {[%clk 0:02:26.7]} 12...
Be6 {[%clk 0:02:51]} 13. Rb1 {[%clk 0:02:26.7]} 13... Qd7 {[%clk 0:02:49.2]} 14.
Nf3 {[%clk 0:02:26.1]} 14... b6 {[%clk 0:02:47]} 15. Qa4 {[%clk 0:02:26.5]}
15... Rac8 {[%clk 0:02:40.8]} 16. Ng5 {[%clk 0:02:01.1]} 16... Nxd4 {[%clk
0:02:28.8]} 17. Qd1 {[%clk 0:01:32.7]} 17... Rxc3 {[%clk 0:02:21.6]} 18. e3
{[%clk 0:01:29.8]} 18... Nc6 {[%clk 0:02:15.2]} 19. Nxe6 {[%clk 0:01:27.3]}
19... fxe6 {[%clk 0:02:15.1]} 20. a4 {[%clk 0:01:27.5]} 20... Kh8 {[%clk
0:02:09.9]} 21. g4 {[%clk 0:01:20.7]} 21... e5 {[%clk 0:02:09.4]} 22. Bg3 {[%clk
0:01:21.1]} 22... e6 {[%clk 0:02:06.7]} 23. h4 {[%clk 0:01:18.8]} 23... Qf7
{[%clk 0:01:56.1]} 24. Rc1 {[%clk 0:01:10]} 24... Rxc1 {[%clk 0:01:52.3]} 25.
Qxc1 {[%clk 0:01:10.9]} 25... Na5 {[%clk 0:01:52.8]} 26. f4 {[%clk 0:01:01.5]}
26... exf4 {[%clk 0:01:44.7]} 27. Bxf4 {[%clk 0:01:00.8]} 27... Qd7 {[%clk
0:01:37.1]} 28. h5 {[%clk 0:00:58.3]} 28... e5 {[%clk 0:01:30.4]} 29. Bxe5
{[%clk 0:00:58.1]} 29... Rxf1+ {[%clk 0:01:13]} 30. Qxf1 {[%clk 0:00:59]} 30...
Qe7 {[%clk 0:01:13.2]} 31. Bxg7+ {[%clk 0:00:43.4]} 31... Kxg7 {[%clk
0:01:12.6]} 32. Qf4 {[%clk 0:00:41.1]} 32... g5 {[%clk 0:00:56.4]} 33. Qd4+
{[%clk 0:00:38.2]} 33... Qf6 {[%clk 0:00:56.1]} 34. Qxd5 {[%clk 0:00:38.7]}
34... h6 {[%clk 0:00:51.7]} 35. Be4 {[%clk 0:00:27.4]} 35... Kf8 {[%clk
0:00:30]} 36. Qa8+ {[%clk 0:00:26.1]} 36... Ke7 {[%clk 0:00:19.6]} 37. Qxa7+
{[%clk 0:00:25.8]} 37... Kd8 {[%clk 0:00:17.8]} 38. Qb8+ {[%clk 0:00:24.9]}
38... Ke7 {[%clk 0:00:17.4]} 39. Qc7+ {[%clk 0:00:25.4]} 39... Kf8 {[%clk
0:00:17.5]} 40. Qc8+ {[%clk 0:00:24.4]} 40... Ke7 {[%clk 0:00:16.8]} 41. Qc7+
{[%clk 0:00:25]} 41... Kf8 {[%clk 0:00:16.7]} 42. Bd5 {[%clk 0:00:23.2]} 42...
Ke8 {[%clk 0:00:14.2]} 43. Qc8+ {[%clk 0:00:21.7]} 43... Ke7 {[%clk 0:00:14]}
44. Qc7+ {[%clk 0:00:21.1]} 44... Ke8 {[%clk 0:00:14.4]} 45. Kg2 {[%clk
0:00:17.6]} 45... Kf8 {[%clk 0:00:12.9]} 46. Qd7 {[%clk 0:00:15.6]} 46... Qb2+
{[%clk 0:00:07.2]} 47. Kg3 {[%clk 0:00:15.4]} 47... Qe5+ {[%clk 0:00:07.1]} 48.
Kf3 {[%clk 0:00:15.9]} 48... Qf6+ {[%clk 0:00:05.6]} 49. Ke4 {[%clk 0:00:16.5]}
49... Qe7+ {[%clk 0:00:05.8]} 50. Qe6 {[%clk 0:00:16.1]} 50... Qxe6+ {[%clk
0:00:05.2]} 51. Bxe6 {[%clk 0:00:17]} 51... Nb7 {[%clk 0:00:03.7]} 52. Kd5
{[%clk 0:00:11.7]} 52... Nc5 {[%clk 0:00:03.6]} 53. Bf5 {[%clk 0:00:11.3]} 53...
Nxa4 {[%clk 0:00:03.6]} 54. Kc6 {[%clk 0:00:12]} 54... Ke7 {[%clk 0:00:03.1]}
55. Bc2 {[%clk 0:00:12.5]} 55... Nc3 {[%clk 0:00:02.6]} 56. e4 {[%clk
0:00:11.7]} 56... Ke6 {[%clk 0:00:02.1]} 57. Kxb6 {[%clk 0:00:11.7]} 57... Ke5
{[%clk 0:00:02.5]} 58. Kc6 {[%clk 0:00:12.2]} 58... Nxe4 {[%clk 0:00:02.6]} 59.
Kd7 {[%clk 0:00:10.3]} 59... Nf2 {[%clk 0:00:02.8]} 60. Bf5 {[%clk 0:00:09.5]}
60... Kf4 {[%clk 0:00:03.2]} 61. Ke7 {[%clk 0:00:08.5]} 61... Nxg4 {[%clk
0:00:03.5]} 62. Bd7 {[%clk 0:00:09]} 62... Ne5 {[%clk 0:00:02.5]} 63. Bb5 {[%clk
0:00:09]} 63... g4 {[%clk 0:00:02.9]} 64. Kf6 {[%clk 0:00:09.5]} 64... g3 {[%clk
0:00:03]} 65. Bf1 {[%clk 0:00:10.2]} 65... Nf3 {[%clk 0:00:03]} 66. Kg6 {[%clk
0:00:09.2]} 66... Nh2 {[%clk 0:00:03]} 67. Bg2 {[%clk 0:00:09]} 67... Ng4 {[%clk
0:00:03.6]} 68. Bh3 {[%clk 0:00:08.8]} 68... Nf2 {[%clk 0:00:03.4]} 69. Bg2
{[%clk 0:00:09.1]} 69... Ng4 {[%clk 0:00:03.8]} 70. Bh3 {[%clk 0:00:09.8]} 70...
Kf3 {[%clk 0:00:04.3]} 71. Bxg4+ {[%clk 0:00:09.6]} 71... Kxg4 {[%clk
0:00:04.6]} 72. Kxh6 {[%clk 0:00:10.5]} 72... g2 {[%clk 0:00:05.2]} 73. Kg6
{[%clk 0:00:10.9]} 73... g1=Q {[%clk 0:00:05.9]} 74. h6 {[%clk 0:00:11.8]} 74...
Qb6+ {[%clk 0:00:05.7]} 75. Kg7 {[%clk 0:00:12.7]} 75... Kg5 {[%clk 0:00:06]}
76. h7 {[%clk 0:00:13.6]} 76... Qc7+ {[%clk 0:00:06.3]} 77. Kg8 {[%clk
0:00:14.5]} 77... Kg6 {[%clk 0:00:06.7]} 78. h8=Q {[%clk 0:00:13]} 78... Qf7#
{[%clk 0:00:06.7]} 0-1

[Event "Early-Titled-Tuesday-Blitz-September-12-2023"]
[Site "Chess.com"]
[Date "2023.09.12"]
[Round "3"]
[White "LamaChampetre"]
[Black "ljuks68"]
[Result "0-1"]
[WhiteElo "2249"]
[BlackElo "2450"]
[TimeControl "180+1"]
[EndTime "8:29:46 PDT"]
[Termination "ljuks68 won on time"]

1. d4 {[%clk 0:03:00.1]} 1... d5 {[%clk 0:03:00]} 2. c4 {[%clk 0:02:59.3]} 2...
c6 {[%clk 0:02:59.9]} 3. Nf3 {[%clk 0:02:59.9]} 3... Nf6 {[%clk 0:03:00.2]} 4.
e3 {[%clk 0:03:00.5]} 4... e6 {[%clk 0:03:00.1]} 5. Qc2 {[%clk 0:02:59.6]} 5...
dxc4 {[%clk 0:02:55]} 6. Bxc4 {[%clk 0:02:51.5]} 6... b5 {[%clk 0:02:55.2]} 7.
Bd3 {[%clk 0:02:51]} 7... Bb7 {[%clk 0:02:55.7]} 8. O-O {[%clk 0:02:50.3]} 8...
Nbd7 {[%clk 0:02:56]} 9. e4 {[%clk 0:02:49.6]} 9... a6 {[%clk 0:02:55.2]} 10.
Be3 {[%clk 0:02:48.6]} 10... Rc8 {[%clk 0:02:54.4]} 11. Rd1 {[%clk 0:02:34.2]}
11... c5 {[%clk 0:02:53.7]} 12. dxc5 {[%clk 0:02:33.6]} 12... Bxc5 {[%clk
0:02:51.3]} 13. Bxc5 {[%clk 0:02:33.5]} 13... Rxc5 {[%clk 0:02:51.4]} 14. Qe2
{[%clk 0:02:31.8]} 14... Qc7 {[%clk 0:02:48.3]} 15. Nc3 {[%clk 0:02:31.3]} 15...
O-O {[%clk 0:02:30.5]} 16. a3 {[%clk 0:02:06.7]} 16... Ne5 {[%clk 0:02:22.2]}
17. Nxe5 {[%clk 0:01:57.4]} 17... Qxe5 {[%clk 0:02:21.5]} 18. Rac1 {[%clk
0:01:56.4]} 18... Rfc8 {[%clk 0:02:16.9]} 19. f3 {[%clk 0:01:19.4]} 19... h5
{[%clk 0:02:08.2]} 20. Rd2 {[%clk 0:01:15.4]} 20... h4 {[%clk 0:02:03.3]} 21.
Rcd1 {[%clk 0:01:14.3]} 21... Nh5 {[%clk 0:02:03.3]} 22. Qf2 {[%clk 0:01:09.7]}
22... Qg5 {[%clk 0:01:57.9]} 23. Ne2 {[%clk 0:01:02.5]} 23... Nf4 {[%clk
0:01:34.6]} 24. Nxf4 {[%clk 0:00:56.2]} 24... Qxf4 {[%clk 0:01:34.8]} 25. Bf1
{[%clk 0:00:45.7]} 25... R5c7 {[%clk 0:01:20.2]} 26. g3 {[%clk 0:00:41.6]} 26...
hxg3 {[%clk 0:01:16.6]} 27. hxg3 {[%clk 0:00:41.5]} 27... Qe5 {[%clk 0:01:16.8]}
28. Rd8+ {[%clk 0:00:36.7]} 28... Rxd8 {[%clk 0:01:15.8]} 29. Rxd8+ {[%clk
0:00:36.8]} 29... Kh7 {[%clk 0:01:16.3]} 30. Qh2+ {[%clk 0:00:36.2]} 30... Kg6
{[%clk 0:01:16.3]} 31. Rh8 {[%clk 0:00:30]} 31... Kf6 {[%clk 0:00:39.7]} 32.
Qh4+ {[%clk 0:00:28.9]} 32... g5 {[%clk 0:00:39.8]} 33. Qh6+ {[%clk 0:00:26.7]}
33... Ke7 {[%clk 0:00:39.6]} 34. Qf8+ {[%clk 0:00:26]} 34... Kd7 {[%clk
0:00:36.1]} 35. Qe8+ {[%clk 0:00:19.9]} 35... Kd6 {[%clk 0:00:33.4]} 36. Qf8+
{[%clk 0:00:12.7]} 36... Kc6 {[%clk 0:00:31.8]} 37. Qe8+ {[%clk 0:00:12.8]}
37... Kb6 {[%clk 0:00:31.5]} 38. Qd8 {[%clk 0:00:12.3]} 38... Qxg3+ {[%clk
0:00:30.3]} 39. Bg2 {[%clk 0:00:12.1]} 39... Qe5 {[%clk 0:00:21.1]} 40. b4
{[%clk 0:00:11.2]} 40... Qc3 {[%clk 0:00:12.5]} 41. Re8 {[%clk 0:00:10.5]} 41...
Qc1+ {[%clk 0:00:06.4]} 42. Kh2 {[%clk 0:00:10.3]} 42... Qf4+ {[%clk 0:00:06.4]}
43. Kg1 {[%clk 0:00:10.2]} 43... Kc6 {[%clk 0:00:06.3]} 44. Rf8 {[%clk
0:00:05.9]} 44... Rd7 {[%clk 0:00:05.7]} 45. Qe8 {[%clk 0:00:05.2]} 45... Kc7
{[%clk 0:00:04.5]} 46. Rh8 {[%clk 0:00:03.1]} 46... Rd1+ {[%clk 0:00:03.8]} 47.
Bf1 {[%clk 0:00:03.5]} 47... Rd2 {[%clk 0:00:03]} 48. Qxf7+ {[%clk 0:00:02.4]}
48... Kb6 {[%clk 0:00:02.9]} 49. Qxf4 {[%clk 0:00:01.2]} 49... gxf4 {[%clk
0:00:02.8]} 50. Rh7 {[%clk 0:00:01.7]} 50... Ra2 {[%clk 0:00:01.7]} 51. Re7
{[%clk 0:00:02]} 51... Rxa3 {[%clk 0:00:02]} 52. Rxe6+ {[%clk 0:00:02.4]} 52...
Ka7 {[%clk 0:00:01.5]} 53. Kf2 {[%clk 0:00:02.9]} 53... Ra2+ {[%clk 0:00:01.8]}
54. Be2 {[%clk 0:00:03.3]} 54... Rb2 {[%clk 0:00:02.5]} 55. Re7 {[%clk
0:00:03.5]} 55... Kb6 {[%clk 0:00:02.7]} 56. e5 {[%clk 0:00:03.8]} 56... Rxb4
{[%clk 0:00:02.9]} 57. e6 {[%clk 0:00:03.6]} 57... Bd5 {[%clk 0:00:03.2]} 58.
Rd7 {[%clk 0:00:02.5]} 58... Bxe6 {[%clk 0:00:03.2]} 59. Rd6+ {[%clk 0:00:02.6]}
59... Kc5 {[%clk 0:00:03.7]} 60. Rxe6 {[%clk 0:00:03.5]} 60... a5 {[%clk
0:00:04.3]} 61. Rf6 {[%clk 0:00:03.7]} 61... a4 {[%clk 0:00:04.1]} 62. Rf5+
{[%clk 0:00:04.2]} 62... Kb6 {[%clk 0:00:04.2]} 63. Rf6+ {[%clk 0:00:04.6]}
63... Ka5 {[%clk 0:00:04.5]} 64. Rf8 {[%clk 0:00:04.7]} 64... Rd4 {[%clk
0:00:04.4]} 65. Ra8+ {[%clk 0:00:04.6]} 65... Kb4 {[%clk 0:00:04.5]} 66. Rb8
{[%clk 0:00:04.5]} 66... Rd5 {[%clk 0:00:04.9]} 67. Ra8 {[%clk 0:00:03.8]} 67...
a3 {[%clk 0:00:05.1]} 68. Ke1 {[%clk 0:00:04]} 68... Kb3 {[%clk 0:00:05.3]} 69.
Bd1+ {[%clk 0:00:04]} 69... Kb2 {[%clk 0:00:04.9]} 70. Be2 {[%clk 0:00:03.4]}
70... b4 {[%clk 0:00:05]} 71. Bc4 {[%clk 0:00:03.2]} 71... Rc5 {[%clk
0:00:05.2]} 72. Be6 {[%clk 0:00:02.9]} 72... b3 {[%clk 0:00:05.2]} 73. Rb8
{[%clk 0:00:02.7]} 73... Rc3 {[%clk 0:00:05.3]} 74. Ra8 {[%clk 0:00:03]} 74...
Re3+ {[%clk 0:00:05.2]} 75. Kd2 {[%clk 0:00:03]} 75... Rxe6 {[%clk 0:00:05.8]}
76. Rc8 {[%clk 0:00:02.5]} 76... a2 {[%clk 0:00:05.3]} 0-1

[Event "Early-Titled-Tuesday-Blitz-September-12-2023"]
[Site "Chess.com"]
[Date "2023.09.12"]
[Round "3"]
[White "FARIZA2018"]
[Black "yuki_chess123"]
[Result "1/2-1/2"]
[WhiteElo "2531"]
[BlackElo "2183"]
[TimeControl "180+1"]
[EndTime "8:30:19 PDT"]
[Termination "Game drawn by repetition"]

1. e4 {[%clk 0:03:00.9]} 1... g6 {[%clk 0:02:59.6]} 2. d4 {[%clk 0:03:00.9]}
2... Bg7 {[%clk 0:02:59.9]} 3. Nc3 {[%clk 0:03:01]} 3... c6 {[%clk 0:02:58.7]}
4. Be3 {[%clk 0:02:58.9]} 4... d5 {[%clk 0:02:58]} 5. e5 {[%clk 0:02:50]} 5...
f6 {[%clk 0:02:57.2]} 6. f4 {[%clk 0:02:49]} 6... Nh6 {[%clk 0:02:57.3]} 7. Nf3
{[%clk 0:02:45.2]} 7... Bg4 {[%clk 0:02:57.3]} 8. Be2 {[%clk 0:02:44.3]} 8...
O-O {[%clk 0:02:57.2]} 9. O-O {[%clk 0:02:43.8]} 9... Nd7 {[%clk 0:02:57.4]} 10.
h3 {[%clk 0:02:38.1]} 10... Bxf3 {[%clk 0:02:57.8]} 11. Bxf3 {[%clk 0:02:38]}
11... Nf5 {[%clk 0:02:58]} 12. Bf2 {[%clk 0:02:38]} 12... fxe5 {[%clk
0:02:58.6]} 13. fxe5 {[%clk 0:02:36]} 13... e6 {[%clk 0:02:57.1]} 14. Qd3 {[%clk
0:02:24.6]} 14... c5 {[%clk 0:02:55.6]} 15. Rae1 {[%clk 0:01:29.9]} 15... cxd4
{[%clk 0:02:43.5]} 16. Bxd4 {[%clk 0:01:29.7]} 16... Nxd4 {[%clk 0:02:35.9]} 17.
Qxd4 {[%clk 0:01:29.8]} 17... Qb6 {[%clk 0:02:25.2]} 18. Qxb6 {[%clk 0:01:27.4]}
18... axb6 {[%clk 0:02:23.8]} 19. Bg4 {[%clk 0:01:25.2]} 19... Rxf1+ {[%clk
0:02:20]} 20. Kxf1 {[%clk 0:01:24.1]} 20... Re8 {[%clk 0:01:55.2]} 21. Nxd5
{[%clk 0:01:21]} 21... exd5 {[%clk 0:01:52]} 22. Bxd7 {[%clk 0:01:20.4]} 22...
Rxe5 {[%clk 0:01:52.6]} 23. Rxe5 {[%clk 0:01:00.8]} 23... Bxe5 {[%clk
0:01:50.7]} 24. Be6+ {[%clk 0:01:01.1]} 24... Kg7 {[%clk 0:01:48]} 25. b3 {[%clk
0:01:01]} 25... d4 {[%clk 0:01:45.8]} 26. Bd5 {[%clk 0:00:58.4]} 26... h5 {[%clk
0:01:44.4]} 27. Bxb7 {[%clk 0:00:57.7]} 27... h4 {[%clk 0:01:44.1]} 28. Ke2
{[%clk 0:00:57.7]} 28... Kf6 {[%clk 0:01:43.6]} 29. Kd3 {[%clk 0:00:57.9]} 29...
Ke6 {[%clk 0:01:26.5]} 30. Kc4 {[%clk 0:00:57.6]} 30... Kd6 {[%clk 0:01:26.6]}
31. Kb5 {[%clk 0:00:57.7]} 31... Kc7 {[%clk 0:01:26]} 32. Be4 {[%clk 0:00:57.5]}
32... g5 {[%clk 0:01:25.5]} 33. a4 {[%clk 0:00:57.1]} 33... Bf4 {[%clk
0:01:24.1]} 34. b4 {[%clk 0:00:53.9]} 34... Bd2 {[%clk 0:01:23.8]} 35. a5 {[%clk
0:00:50.7]} 35... bxa5 {[%clk 0:01:24]} 36. bxa5 {[%clk 0:00:50.6]} 36... Kb8
{[%clk 0:01:24.3]} 37. Kb6 {[%clk 0:00:50]} 37... Be3 {[%clk 0:01:21.9]} 38. Bd3
{[%clk 0:00:50.1]} 38... Bf4 {[%clk 0:01:19.5]} 39. a6 {[%clk 0:00:47.7]} 39...
Bc7+ {[%clk 0:01:19.3]} 40. Kc6 {[%clk 0:00:47.5]} 40... Bf4 {[%clk 0:01:17.8]}
41. Kc5 {[%clk 0:00:42.4]} 41... Be5 {[%clk 0:01:09.1]} 42. Kd5 {[%clk
0:00:42.3]} 42... Bg7 {[%clk 0:01:04.8]} 43. Ke4 {[%clk 0:00:42.3]} 43... Bf6
{[%clk 0:00:40.9]} 44. Kf5 {[%clk 0:00:29.9]} 44... Bd8 {[%clk 0:00:41.3]} 45.
Ke5 {[%clk 0:00:29.1]} 45... Bb6 {[%clk 0:00:39]} 46. Be4 {[%clk 0:00:21.1]}
46... Ka7 {[%clk 0:00:37.3]} 47. Bb7 {[%clk 0:00:18.7]} 47... Bc5 {[%clk
0:00:32.3]} 48. Kf6 {[%clk 0:00:17.5]} 48... Bd6 {[%clk 0:00:30.2]} 49. Kxg5
{[%clk 0:00:17.5]} 49... Bg3 {[%clk 0:00:29.6]} 50. Kg4 {[%clk 0:00:17.5]} 50...
Bf2 {[%clk 0:00:28.9]} 51. Kf3 {[%clk 0:00:17.3]} 51... Bg3 {[%clk 0:00:24.7]}
52. Ke4 {[%clk 0:00:17.2]} 52... Bf2 {[%clk 0:00:24.4]} 53. Kd3 {[%clk
0:00:17.2]} 53... Kb8 {[%clk 0:00:20.5]} 54. Kc4 {[%clk 0:00:14.9]} 54... Ka7
{[%clk 0:00:19.9]} 55. Kb5 {[%clk 0:00:14.2]} 55... Kb8 {[%clk 0:00:19.2]} 56.
Be4 {[%clk 0:00:14.4]} 56... Ka7 {[%clk 0:00:18.6]} 57. Bd3 {[%clk 0:00:14.5]}
57... Be3 {[%clk 0:00:17.9]} 58. Kc5 {[%clk 0:00:14.2]} 58... Bf2 {[%clk
0:00:17.1]} 59. Kd5 {[%clk 0:00:14.4]} 59... Kb6 {[%clk 0:00:15.2]} 60. Ke4
{[%clk 0:00:14.2]} 60... Ka7 {[%clk 0:00:14.7]} 61. Kf3 {[%clk 0:00:14.2]} 61...
Bg3 {[%clk 0:00:14.2]} 62. Kg4 {[%clk 0:00:14]} 62... Bf2 {[%clk 0:00:13.9]} 63.
Kf4 {[%clk 0:00:13.8]} 63... Bg3+ {[%clk 0:00:13.9]} 64. Kf3 {[%clk 0:00:13.2]}
64... Kb6 {[%clk 0:00:13.3]} 65. Ke2 {[%clk 0:00:13]} 65... Ka7 {[%clk
0:00:13.1]} 66. Bc4 {[%clk 0:00:11.3]} 66... Kb6 {[%clk 0:00:12.9]} 67. Kf3
{[%clk 0:00:10.3]} 67... Ka7 {[%clk 0:00:12.6]} 68. Ke4 {[%clk 0:00:10]} 68...
Bf2 {[%clk 0:00:12.9]} 69. Kf3 {[%clk 0:00:10.3]} 69... Bg3 {[%clk 0:00:13.1]}
70. Be2 {[%clk 0:00:10.1]} 70... Kb6 {[%clk 0:00:13.5]} 71. Bd3 {[%clk
0:00:10.2]} 71... Ka7 {[%clk 0:00:13.8]} 72. Ke4 {[%clk 0:00:10.6]} 72... Bf2
{[%clk 0:00:13.2]} 73. Kd5 {[%clk 0:00:10.9]} 73... Kb6 {[%clk 0:00:12.8]} 74.
Kd6 {[%clk 0:00:11.3]} 74... Ka7 {[%clk 0:00:12.8]} 75. Kc7 {[%clk 0:00:11.1]}
75... Bg3+ {[%clk 0:00:13.2]} 76. Kc6 {[%clk 0:00:11.3]} 76... Bf2 {[%clk
0:00:13.6]} 77. Kb5 {[%clk 0:00:11.7]} 77... Bg3 {[%clk 0:00:13.4]} 78. Kc5
{[%clk 0:00:09.7]} 78... Bf2 {[%clk 0:00:13.5]} 79. Kc4 {[%clk 0:00:08.2]} 79...
Be3 {[%clk 0:00:13.4]} 80. Kd5 {[%clk 0:00:08.5]} 80... Bf2 {[%clk 0:00:13.6]}
81. Ke4 {[%clk 0:00:08.5]} 81... Kb6 {[%clk 0:00:13.7]} 82. Bc4 {[%clk
0:00:08.5]} 82... Ka7 {[%clk 0:00:09.7]} 83. Kd3 {[%clk 0:00:08.5]} 83... Kb6
{[%clk 0:00:09.7]} 84. Ke2 {[%clk 0:00:08.1]} 84... Bg3 {[%clk 0:00:09.8]} 85.
Kf3 {[%clk 0:00:08.3]} 85... Ka7 {[%clk 0:00:09.1]} 1/2-1/2